[Event "10th LCC FIDE Open 2018"]
[Site "London"]
[Date "2018.12.12"]
[Round "4"]
[White "Quinn, John M"]
[Black "Elsness, Frode"]
[Result "0-1"]
[ECO "E35"]
[WhiteElo "2160"]
[BlackElo "2447"]
[Annotator "NA"]
[PlyCount "64"]
[EventDate "2018.12.09"]
[EventType "swiss"]
[EventCountry "ENG"]
[SourceTitle "playchess.com"]
[Source "ChessBase"]
[SourceQuality "1"]
[TimeControl "40/5400+30:1800+30"]

{[%evp 8,61,9,16,32767,32767,32767,10,0,0,0,32767,32767,10,9,32767,0,0,0,-1,10,9,17,32767,32767,0,7,-18,-6,-17,-15,-16,-31,-27,-4,0,0,-75,-69,32767,32767,-104,-85,32767,-182,-183,32767,-199,32767,-529,32767,32767,32767,32767,-574,-625]} 1. d4 {[%emt 0:00:00]} Nf6 {[%emt 0:08:19]} 2. c4 {[%emt 0:00:00]} e6 {[%emt 0:00:15]} 3. Nc3 {[%emt 0:00:00]} Bb4 {[%emt 0:00:03]} 4. Qc2 {[%emt 0:00:00]} d5 {[%emt 0:00:06]} 5. cxd5 {[%emt 0:00:00]} exd5 {[%emt 0:00:05]} 6. Bg5 {[%emt 0:00:01]} h6 {[%emt 0:00:24]} 7. Bxf6 {[%emt 0:01:34]} Qxf6 {[%emt 0:00:09]} 8. a3 {[%emt 0:00:07]} Bxc3+ {[%emt 0:00:09]} 9. Qxc3 {[%emt 0:00:09]} c6 {[%emt 0:02:52]} 10. e3 {[%emt 0:01:37]} O-O {[%emt 0:02:44]} 11. Nf3 {[%emt 0:01:05]} Bf5 {[%emt 0:00:59]} 12. Be2 {[%emt 0:01:42]} Nd7 {[%emt 0:01:48]} 13. b4 {[%emt 0:04:43] E35: Nimzo-Indian: Classical: 4...d5 5 cxd5 exd5} (13. O-O Bg4 14. Qb4 Bxf3 15. Bxf3 Rfb8 16. Bg4 a5 17. Qb3 Qd6 18. Bxd7 Qxd7 19. Rac1 a4 20. Qb4 Qd8 21. Rc5 Ra6 22. Rfc1 Qb6 23. Qd2 Qd8 24. Qb4 Qb6 25. Qd2 Qd8 26. Qb4 {½-½ (26) Bu,X (2695)-Ni,H (2703) Danzhou 2015}) 13... Rfe8 {[%emt 0:03:29]} 14. O-O {[%emt 0:01:45] LiveBook: 11 Games} g5 {[%emt 0:01:34]} 15. Rfc1 {[%emt 0:05:07]} Rac8 {[%emt 0:13:06]} 16. a4 $146 {[%emt 0:08:57]} ({Predecessor:} 16. Ne1 g4 17. Nd3 Bxd3 18. Bxd3 h5 19. Qc2 Nf8 20. Ra2 Ne6 21. Qb3 Ng5 22. a4 h4 23. Qd1 Qe6 24. Qc2 Ne4 {1-0 (24) Walther,E-Brady,L ICCF corr 1983}) 16... g4 {[%emt 0:05:25]} 17. Nd2 {[%emt 0:02:13]} h5 {[%emt 0:00:59]} 18. Bd3 {[%emt 0:25:58]} h4 {[%emt 0:07:19]} 19. Bxf5 {[%emt 0:07:23]} Qxf5 {[%emt 0:02:30]} 20. Qc2 {[%emt 0:05:29]} Qf6 {[%emt 0:04:01]} 21. Ra3 {[%emt 0:02:53]} Re6 {[%emt 0:08:00]} 22. e4 {[%emt 0:07:45]} (22. b5 $11) 22... Qxd4 {[%emt 0:10:49]} 23. Rd3 {[%emt 0:05:04]} Qf6 {[%emt 0:04:42]} 24. Rxd5 {[%emt 0:03:25]} (24. exd5 $11 Re2 25. Rf1) 24... Ne5 {[%emt 0:02:38]} 25. Nf1 {[%emt 0:05:29]} Rce8 {[%emt 0:05:18]} 26. Rc5 {[%emt 0:02:12]} h3 {[%emt 0:00:15]} 27. Ng3 {[%emt 0:03:45]} hxg2 {[%emt 0:01:21]} 28. Nf5 $2 {[%emt 0:00:52]} (28. Kxg2 {is tougher.} Qh8 {[#]} 29. h4 $1 {[%mdl 512]}) 28... Nf3+ {[%emt 0:02:07]} 29. Kxg2 {[%emt 0:00:07]} Rxe4 {[%emt 0:00:40]} 30. Qc3 {[%emt 0:02:01]} R8e5 {[%emt 0:02:09]} 31. Rxe5 $19 {[%emt 0:01:08]} Rxe5 {[%emt 0:00:54]} 32. Nd4 {[%emt 0:00:41]} Rd5 {[%emt 0:04:37]} 0-1

[Event "10th LCC FIDE Open 2018"]
[Site "London"]
[Date "2018.12.12"]
[Round "4"]
[White "Stone, Andrew M"]
[Black "Milliet, Sophie"]
[Result "0-1"]
[ECO "E14"]
[WhiteElo "2157"]
[BlackElo "2376"]
[Annotator "ChessBase"]
[PlyCount "88"]
[EventDate "2018.12.09"]
[EventType "swiss"]
[EventCountry "ENG"]
[SourceTitle "playchess.com"]
[Source "ChessBase"]
[SourceQuality "1"]
[TimeControl "40/5400+30:1800+30"]

1. Nf3 {[%emt 0:00:00]} Nf6 {[%emt 0:00:07]} 2. c4 {[%emt 0:00:00]} b6 {[%emt 0:00:09]} 3. e3 {[%emt 0:01:42]} Bb7 {[%emt 0:07:43]} 4. d4 {[%emt 0:00:45]} e6 {[%emt 0:00:15]} 5. Bd3 {[%emt 0:01:04]} d5 {[%emt 0:00:18]} 6. b3 {[%emt 0:04:11]} Nbd7 {[%emt 0:04:05]} 7. O-O {[%emt 0:01:12]} Bd6 {[%emt 0:00:41]} 8. Bb2 {[%emt 0:00:54]} Ne4 {[%emt 0:05:04]} 9. Nbd2 {[%emt 0:11:51]} O-O {[%emt 0:06:51]} 10. Qe2 {[%emt 0:19:20]} Qf6 {[%emt 0:05:06]} 11. cxd5 {[%emt 0:06:28]} exd5 {[%emt 0:00:09]} 12. Ba6 {[%emt 0:01:25]} Bxa6 {[%emt 0:04:42]} 13. Qxa6 {[%emt 0:00:05]} Qh6 {[%emt 0:00:21]} 14. Nxe4 {[%emt 0:15:27]} dxe4 {[%emt 0:00:07]} 15. Ne5 {[%emt 0:00:04]} f6 {[%emt 0:08:19]} 16. Ng4 {[%emt 0:00:39]} Qg5 {[%emt 0:10:15]} 17. h3 {[%emt 0:01:15]} h5 {[%emt 0:03:07]} 18. Nh2 {[%emt 0:00:29]} Qd5 {[%emt 0:20:52]} 19. Qc4 {[%emt 0:02:51]} Qxc4 {[%emt 0:00:46]} 20. bxc4 {[%emt 0:00:03]} f5 {[%emt 0:05:19]} 21. f4 {[%emt 0:12:58]} exf3 {[%emt 0:03:42]} 22. Nxf3 {[%emt 0:00:50]} Bg3 {[%emt 0:01:05]} 23. Bc3 {[%emt 0:01:44]} g6 {[%emt 0:01:38]} 24. Be1 {[%emt 0:00:35]} Bd6 {[%emt 0:00:02]} 25. Bh4 {[%emt 0:03:32]} Rae8 {[%emt 0:03:31]} 26. Bg5 {[%emt 0:04:09]} Nf6 {[%emt 0:00:19]} 27. Rfe1 {[%emt 0:00:49]} Ne4 {[%emt 0:01:15]} 28. Bf4 {[%emt 0:00:20]} Rf7 {[%emt 0:02:18]} 29. Bxd6 {[%emt 0:04:55]} cxd6 {[%emt 0:00:01]} 30. d5 {[%emt 0:00:10]} Rc7 {[%emt 0:02:01]} 31. Rac1 {[%emt 0:01:06]} Rec8 {[%emt 0:00:41]} 32. Nd4 {[%emt 0:00:20]} Rxc4 {[%emt 0:00:13]} 33. Nc6 {[%emt 0:00:24]} Rxc1 {[%emt 0:00:08]} 34. Rxc1 {[%emt 0:00:01]} Kg7 {[%emt 0:00:07]} 35. Rc4 {[%emt 0:01:59]} Nf6 {[%emt 0:01:06]} 36. Rd4 {[%emt 0:01:50]} Nxd5 {[%emt 0:00:25]} 37. Nxa7 {[%emt 0:00:13]} Rc1+ {[%emt 0:00:05]} 38. Kf2 {[%emt 0:01:40]} Nc3 {[%emt 0:00:33]} 39. a4 {[%emt 0:00:56]} Ne4+ {[%emt 0:00:21]} 40. Ke2 {[%emt 0:00:50]} Rc2+ {[%emt 0:00:37]} 41. Kf1 {[%emt 0:01:05]} Rc1+ {[%emt 0:03:52]} 42. Ke2 {[%emt 0:00:13]} Rg1 {[%emt 0:00:12]} 43. Nc8 {[%emt 0:02:43]} Rxg2+ {[%emt 0:01:20]} 44. Kf1 {[%emt 0:00:32]} Rc2 {[%emt 0:04:27]} 0-1

[Event "10th LCC FIDE Open 2018"]
[Site "London"]
[Date "2018.12.12"]
[Round "4"]
[White "Woong, Zhi Wei William"]
[Black "Bates, Richard A"]
[Result "1/2-1/2"]
[ECO "B22"]
[WhiteElo "2146"]
[BlackElo "2372"]
[Annotator "RC"]
[PlyCount "40"]
[EventDate "2018.12.09"]
[EventType "swiss"]
[EventCountry "ENG"]
[SourceTitle "playchess.com"]
[Source "ChessBase"]
[SourceQuality "1"]
[TimeControl "40/5400+30:1800+30"]

1. e4 {[%emt 0:00:00]} c5 {[%emt 0:00:00]} 2. Nf3 {[%emt 0:00:00]} e6 {[%emt 0:03:06]} 3. c3 {[%emt 0:00:00]} Nf6 {[%emt 0:00:35]} 4. e5 {[%emt 0:00:05]} Nd5 {[%emt 0:00:07]} 5. d4 {[%emt 0:00:16]} cxd4 {[%emt 0:00:10]} 6. cxd4 {[%emt 0:00:13]} d6 {[%emt 0:00:07]} 7. Nc3 {[%emt 0:06:00]} Nxc3 {[%emt 0:00:19]} 8. bxc3 {[%emt 0:00:05]} Qc7 {[%emt 0:00:15]} 9. Bd2 {[%emt 0:00:33]} Nd7 {[%emt 0:00:13]} 10. Ng5 {[%emt 0:04:26]} dxe5 {[%emt 0:47:10]} 11. Qh5 {[%emt 0:00:49]} Nb8 {[%emt 0:00:06]} 12. Nxh7 {[%emt 0:16:10]} exd4 {[%emt 0:00:36]} 13. cxd4 {[%emt 0:11:57]} Nc6 {[%emt 0:02:15]} 14. Nf6+ {[%emt 0:18:28]} gxf6 {[%emt 0:01:23]} 15. Qxh8 {[%emt 0:00:07]} Nxd4 {[%emt 0:02:37]} 16. Rc1 {[%emt 0:03:08]} Qe5+ {[%emt 0:01:33]} 17. Be3 {[%emt 0:00:27]} Qa5+ {[%emt 0:03:52]} 18. Bd2 {[%emt 0:00:42]} Qe5+ {[%emt 0:21:13]} 19. Be3 {[%emt 0:00:05]} Qa5+ {[%emt 0:00:02]} 20. Bd2 {[%emt 0:00:08]} Qe5+ {[%emt 0:03:12]} 1/2-1/2

[Event "10th LCC FIDE Open 2018"]
[Site "London"]
[Date "2018.12.12"]
[Round "4"]
[White "Willmoth, Robert F"]
[Black "Lane, Gary W"]
[Result "0-1"]
[ECO "A80"]
[WhiteElo "2144"]
[BlackElo "2353"]
[Annotator "NA"]
[PlyCount "64"]
[EventDate "2018.12.09"]
[EventType "swiss"]
[EventCountry "ENG"]
[SourceTitle "playchess.com"]
[Source "ChessBase"]
[SourceQuality "1"]
[TimeControl "40/5400+30:1800+30"]

{[%evp 14,64,27,-29,32767,32767,-10,-36,32767,-8,0,32767,32767,-115,-133,-139,-109,-115,32767,-127,-125,32767,-118,-128,32767,-127,-121,-145,-129,32767,-133,-152,32767,-128,32767,32767,32767,32767,-169,-166,32767,32767,32767,32767,32767,-166,32767,32767,32767,-242,32767,-150,-141]} 1. d4 {[%emt 0:00:00]} f5 {[%emt 0:00:00]} 2. Bf4 {[%emt 0:00:00]} Nf6 {[%emt 0:00:07]} 3. Nf3 {[%emt 0:00:00]} d6 {[%emt 0:05:03]} 4. h3 {[%emt 0:00:24]} g6 {[%emt 0:00:35] A80: Dutch Defence: Unusual White second moves} 5. e3 {[%emt 0:01:49]} Bg7 {[%emt 0:01:35]} 6. Bc4 {[%emt 0:00:28]} (6. Be2 O-O 7. O-O e6 8. Bh2 Nc6 9. Nbd2 Qe7 10. c3 b6 11. b4 a5 12. Qb3 Bb7 {½-½ (42) Aronian,L (2826)-Caruana,F (2781) Zuerich 2014}) 6... e6 {[%emt 0:06:04]} 7. Nbd2 {[%emt 0:05:28]} Qe7 {[%emt 0:04:35]} 8. Qe2 {[%emt 0:05:39]} (8. O-O $14) 8... Nc6 {[%emt 0:00:51]} 9. Bb5 $146 {[%emt 0:07:04]} ({Predecessor:} 9. Bh2 O-O 10. O-O h6 11. c3 {0-1 (37) Bayramov,V (2254)-Shimanov,A (2624) Baku 2014}) 9... O-O {[%emt 0:16:59]} 10. Bh2 {[%emt 0:05:28]} Bd7 {[%emt 0:04:05]} 11. O-O {[%emt 0:02:35]} a6 {[%emt 0:01:05]} 12. Ba4 {[%emt 0:11:01]} Nxd4 {[%emt 0:11:16]} 13. Nxd4 {[%emt 0:00:04]} Bxa4 {[%emt 0:00:05]} 14. Qc4 {[%emt 0:00:04]} Bd7 {[%emt 0:03:43]} 15. Qxc7 {[%emt 0:02:51]} e5 {[%emt 0:00:14]} 16. N4b3 {[%emt 0:01:11]} b5 {[%emt 0:05:36]} 17. Rac1 {[%emt 0:04:12] [#]} Qe6 {[%emt 0:08:16]} (17... a5 $1 $19 {[%mdl 512]} 18. Qc3 (18. Nxa5 Rfc8) 18... b4) 18. Qa5 {[%emt 0:02:02]} Rfc8 {[%emt 0:04:06]} 19. Rfd1 {[%emt 0:01:48]} g5 {[%emt 0:07:29]} 20. Nf1 {[%emt 0:06:03]} Bc6 {[%emt 0:03:55]} 21. Qd2 {[%emt 0:10:44]} Bf8 {[%emt 0:01:49]} 22. a3 {[%emt 0:03:06]} f4 {[%emt 0:01:12]} 23. Na5 {[%emt 0:05:45]} Be8 {[%emt 0:00:52]} 24. exf4 {[%emt 0:01:26]} gxf4 {[%emt 0:00:13]} 25. Qe2 {[%emt 0:00:39]} Qf5 {[%emt 0:02:37]} 26. Re1 {[%emt 0:07:18]} Ra7 {[%emt 0:01:42]} 27. Kh1 {[%emt 0:02:39]} Rg7 {[%emt 0:01:04]} 28. c3 {[%emt 0:00:47]} Bf7 {[%emt 0:00:29]} 29. Nd2 {[%emt 0:00:39]} Re8 {[%emt 0:01:39]} 30. f3 {[%emt 0:02:38]} d5 {[%emt 0:00:09]} 31. a4 {[%emt 0:02:45]} (31. b4 $142) 31... Qg5 {[%emt 0:00:46]} 32. axb5 $17 {[%emt 0:00:50]} axb5 {[%emt 0:00:03]} 0-1

[Event "10th LCC FIDE Open 2018"]
[Site "London"]
[Date "2018.12.12"]
[Round "4"]
[White "Tozer, Philip Aa"]
[Black "Wadsworth, Matthew J"]
[Result "0-1"]
[ECO "A11"]
[WhiteElo "2137"]
[BlackElo "2364"]
[Annotator "NA"]
[PlyCount "82"]
[EventDate "2018.12.09"]
[EventType "swiss"]
[EventCountry "ENG"]
[SourceTitle "playchess.com"]
[Source "ChessBase"]
[SourceQuality "1"]
[TimeControl "40/5400+30:1800+30"]

1. c4 {[%emt 0:00:00]} Nf6 {[%emt 0:00:00]} 2. g3 {[%emt 0:00:00]} c6 {[%emt 0:00:00]} 3. Nf3 {[%emt 0:00:00]} d5 {[%emt 0:00:00]} 4. Bg2 {[%emt 0:01:58]} dxc4 {[%emt 0:00:00]} 5. a4 {[%emt 0:00:06]} a5 {[%emt 0:01:29] A11: English Opening: 1...c6} (5... Be6 6. Na3 Bd5 7. Qc2 e5 8. Nxc4 e4 9. Nh4 Na6 10. b3 Bc5 11. Bb2 O-O 12. Nf5 Re8 13. O-O {1-0 (70) Vallejo Pons,F (2711)-Short,N (2646) Madrid 2016}) 6. Na3 {[%emt 0:01:32]} Qd5 {[%emt 0:02:48]} 7. O-O {[%emt 0:01:46]} Be6 {[%emt 0:01:16]} 8. Ne1 $146 {[%emt 0:02:29]} ({Predecessor:} 8. h4 Na6 9. Ng5 Qd7 10. Qc2 Nb4 11. Qc3 Nfd5 12. Qd4 h6 13. Nxe6 Qxe6 14. Qxc4 {½-½ (34) Batyte,D (2154)-Hapala,E (2063) Vienna 2014}) 8... Qh5 {[%emt 0:02:23]} 9. d3 {[%emt 0:06:39]} Na6 {[%emt 0:06:55]} 10. Bd2 {[%emt 0:11:27]} Nc5 {[%emt 0:06:54]} 11. Nxc4 {[%emt 0:04:23]} Bxc4 {[%emt 0:02:25]} 12. dxc4 {[%emt 0:00:05]} O-O-O {[%emt 0:04:21] [#]} 13. Nd3 $1 {[%emt 0:03:13]} Nce4 {[%emt 0:12:26]} 14. Bf3 {[%emt 0:22:02]} Qf5 {[%emt 0:02:56] [#]} 15. b4 {[%emt 0:01:23]} (15. Be3 $142 $1) 15... Nxd2 {[%emt 0:03:35]} 16. Qxd2 {[%emt 0:00:19]} e5 $1 {[%emt 0:00:04]} 17. Qc2 {[%emt 0:06:34]} e4 {[%emt 0:01:26]} 18. Nc5 {[%emt 0:01:45]} Bxc5 {[%emt 0:00:02]} ({Don't do} 18... axb4 19. Nxe4 Kb8 20. Qb1 $15) 19. bxc5 {[%emt 0:00:07]} Rhe8 {[%emt 0:01:33]} 20. Rfd1 {[%emt 0:03:23]} Qxc5 {[%emt 0:01:23]} 21. Rxd8+ {[%emt 0:00:36]} Kxd8 {[%emt 0:00:02]} 22. Bg2 {[%emt 0:00:37]} e3 {[%emt 0:00:07]} 23. f3 {[%emt 0:02:23]} Kc7 {[%emt 0:00:05]} 24. Rd1 {[%emt 0:01:39]} Rd8 {[%emt 0:00:07]} 25. Rxd8 {[%emt 0:00:44]} Kxd8 {[%emt 0:00:01]} 26. Qd3+ {[%emt 0:00:38]} Kc7 {[%emt 0:00:06]} 27. Bh3 {[%emt 0:00:58]} h5 {[%emt 0:01:24]} 28. Kg2 {[%emt 0:00:52]} Qe5 {[%emt 0:01:16]} 29. Bf5 {[%emt 0:05:01]} g6 {[%emt 0:01:00]} 30. Bh3 {[%emt 0:01:47]} h4 {[%emt 0:01:04]} 31. Bg4 {[%emt 0:03:28] [#]} hxg3 $1 {[%emt 0:08:09]} 32. hxg3 {[%emt 0:00:06]} Nxg4 {[%emt 0:12:30]} 33. fxg4 {[%emt 0:00:02]} g5 {[%emt 0:00:17]} 34. Kf3 {[%emt 0:09:05]} f6 {[%emt 0:00:18]} 35. Qh7+ {[%emt 0:03:27]} Kb6 {[%emt 0:03:54]} 36. Qb1+ {[%emt 0:01:00]} Ka6 {[%emt 0:00:01]} 37. Qd3 {[%emt 0:02:25]} b5 {[%emt 0:00:41]} 38. cxb5+ {[%emt 0:01:54]} cxb5 {[%emt 0:00:02]} 39. axb5+ {[%emt 0:01:00]} Qxb5 {[%emt 0:00:02]} 40. Qxe3 {[%emt 0:01:11]} Qc6+ {[%emt 0:00:05]} 41. Kf2 {[%emt 0:02:01] [#]} Qb6 {[%emt 0:00:02]} 0-1

[Event "10th LCC FIDE Open 2018"]
[Site "London"]
[Date "2018.12.12"]
[Round "4"]
[White "Bhawoodien, Mohamed Ozayr"]
[Black "Ronka, Erik"]
[Result "0-1"]
[ECO "A01"]
[WhiteElo "2123"]
[BlackElo "2281"]
[Annotator "NA"]
[PlyCount "82"]
[EventDate "2018.12.09"]
[EventType "swiss"]
[EventCountry "ENG"]
[SourceTitle "playchess.com"]
[Source "ChessBase"]
[SourceQuality "1"]
[TimeControl "40/5400+30:1800+30"]

1. b3 {[%emt 0:03:17]} e5 {[%emt 0:00:38]} 2. Bb2 {[%emt 0:00:11]} Nc6 {[%emt 0:00:02]} 3. e3 {[%emt 0:00:13]} Nf6 {[%emt 0:00:03]} 4. Bb5 {[%emt 0:02:35]} Bd6 {[%emt 0:00:03]} 5. Na3 {[%emt 0:00:34]} e4 {[%emt 0:00:22] A01: Nimzowitsch-Larsen Opening} 6. Nc4 {[%emt 0:07:23]} Be7 {[%emt 0:01:21]} 7. Bxc6 {[%emt 0:03:13]} bxc6 {[%emt 0:01:40] LiveBook: 18 Games} 8. f3 {[%emt 0:04:52]} (8. Ne2 a5 9. O-O a4 10. d3 exd3 11. cxd3 axb3 12. axb3 Rxa1 13. Qxa1 {1-0 (27) Karjakin,S (2782)-Giri,A (2782) Leuven 2018}) 8... d5 $146 {[%emt 0:04:53]} ({Predecessor:} 8... O-O 9. Ne2 d5 10. Ne5 Qe8 11. O-O Bd6 12. f4 c5 13. Ng3 {0-1 (40) Incecik,S (1698)-Ozbek,B (1822) Antalya 2018}) 9. Ne5 {[%emt 0:00:40]} Bb7 {[%emt 0:01:55]} 10. fxe4 {[%emt 0:02:21]} dxe4 {[%emt 0:01:26]} (10... Nxe4 $11 11. Ne2 Bf6) 11. Nh3 {[%emt 0:05:30]} O-O {[%emt 0:02:24]} 12. O-O {[%emt 0:00:46]} c5 {[%emt 0:11:18]} 13. Nf4 {[%emt 0:12:38]} a5 {[%emt 0:15:56]} 14. a4 {[%emt 0:03:21]} Nd5 {[%emt 0:26:22]} 15. Nh5 {[%emt 0:05:38]} f5 {[%emt 0:01:53]} 16. Nxg7 {[%emt 0:05:16]} Bc8 {[%emt 0:02:46]} 17. Nc6 {[%emt 0:10:54]} Qd6 {[%emt 0:01:04]} 18. Nxe7+ {[%emt 0:00:10]} Nxe7 {[%emt 0:00:45]} 19. Nh5 {[%emt 0:01:45]} Ba6 {[%emt 0:05:06]} 20. Rf2 {[%emt 0:03:33]} c4 {[%emt 0:00:13]} 21. g4 {[%emt 0:03:46]} f4 {[%emt 0:04:10]} 22. exf4 {[%emt 0:06:20]} ({But not} 22. Rxf4 Rxf4 23. exf4 (23. Nxf4 Ng6 $16) 23... Qb6+ 24. Kg2 Nd5) ({Weaker is} 22. Nxf4 Nd5 $16) 22... Ng6 {[%emt 0:02:25]} 23. f5 {[%emt 0:06:12]} (23. Qe1 $142) 23... Nh4 {[%emt 0:01:12]} 24. g5 {[%emt 0:01:49]} Nf3+ {[%emt 0:04:31]} 25. Rxf3 {[%emt 0:02:09]} exf3 {[%emt 0:00:01]} 26. Qxf3 {[%emt 0:00:51]} Qb6+ {[%emt 0:01:14]} 27. Kf1 {[%emt 0:02:02]} c3+ $1 {[%emt 0:00:32] Discovered Attack (Double check)} 28. d3 $19 {[%emt 0:00:27]} Bb7 {[%emt 0:03:35]} 29. Qf4 {[%emt 0:00:40]} Qc6 {[%emt 0:02:09]} 30. Bxc3 {[%emt 0:00:22]} Qxc3 {[%emt 0:02:44]} 31. Re1 {[%emt 0:00:06]} Qc6 {[%emt 0:00:53]} 32. Re7 {[%emt 0:01:08]} Rf7 {[%emt 0:01:48]} 33. Qe5 {[%emt 0:01:41]} Qf3+ {[%emt 0:00:25]} 34. Ke1 {[%emt 0:00:08]} Rxe7 {[%emt 0:00:28]} 35. Nf6+ {[%emt 0:01:08]} Kf7 {[%emt 0:00:21]} 36. g6+ {[%emt 0:00:10]} hxg6 {[%emt 0:00:01]} 37. fxg6+ {[%emt 0:00:05]} Kxg6 {[%emt 0:00:11]} 38. Qxe7 {[%emt 0:00:10]} Qxf6 {[%emt 0:00:06]} 39. Qxc7 {[%emt 0:00:09]} Re8+ {[%emt 0:00:22]} 40. Kd2 {[%emt 0:00:08]} Qg5+ {[%emt 0:00:23]} 41. Kc3 {[%emt 0:30:19]} Rc8 {[%emt 0:30:07]} 0-1

[Event "10th LCC FIDE Open 2018"]
[Site "London"]
[Date "2018.12.12"]
[Round "4"]
[White "Sperling, Lennart"]
[Black "Dauletova, Gulmira"]
[Result "1-0"]
[ECO "E08"]
[WhiteElo "2116"]
[BlackElo "2261"]
[Annotator "RC"]
[PlyCount "141"]
[EventDate "2018.12.09"]
[EventType "swiss"]
[EventCountry "ENG"]
[SourceTitle "playchess.com"]
[Source "ChessBase"]
[SourceQuality "1"]
[TimeControl "40/5400+30:1800+30"]

1. d4 {[%emt 0:00:00]} Nf6 {[%emt 0:00:00]} 2. c4 {[%emt 0:00:00]} e6 {[%emt 0:00:33]} 3. g3 {[%emt 0:00:00]} d5 {[%emt 0:00:25]} 4. Bg2 {[%emt 0:00:00]} Bb4+ {[%emt 0:01:20]} 5. Bd2 {[%emt 0:00:37]} Be7 {[%emt 0:00:07]} 6. Nf3 {[%emt 0:00:39]} O-O {[%emt 0:00:21]} 7. O-O {[%emt 0:00:23]} Nbd7 {[%emt 0:00:19]} 8. Qc2 {[%emt 0:01:32]} Ne4 {[%emt 0:00:34]} 9. Bf4 {[%emt 0:03:08]} c6 {[%emt 0:00:17]} 10. Nbd2 {[%emt 0:00:21]} g5 {[%emt 0:01:42]} 11. Be3 {[%emt 0:04:38]} f5 {[%emt 0:05:41]} 12. Nxe4 {[%emt 0:04:52]} fxe4 {[%emt 0:08:34]} 13. Nd2 {[%emt 0:04:30]} Bf6 {[%emt 0:03:25]} 14. f3 {[%emt 0:03:42]} exf3 {[%emt 0:03:13]} 15. Nxf3 {[%emt 0:03:25]} Nb6 {[%emt 0:17:33]} 16. b3 {[%emt 0:04:33]} Bd7 {[%emt 0:00:37]} 17. c5 {[%emt 0:03:34]} Nc8 {[%emt 0:00:02]} 18. Qd2 {[%emt 0:00:09]} b6 {[%emt 0:13:11]} 19. Bxg5 {[%emt 0:06:18]} Bxg5 {[%emt 0:03:15]} 20. Nxg5 {[%emt 0:00:34]} Rf5 {[%emt 0:09:44]} 21. Nf3 {[%emt 0:10:00]} Ne7 {[%emt 0:04:20]} 22. Bh3 {[%emt 0:01:38]} Rf8 {[%emt 0:10:00]} 23. Ng5 {[%emt 0:03:16]} Nf5 {[%emt 0:00:31]} 24. e4 {[%emt 0:01:26]} Ng7 {[%emt 0:02:44]} 25. Rxf8+ {[%emt 0:03:26]} Qxf8 {[%emt 0:00:01]} 26. Rf1 {[%emt 0:05:06]} Qe8 {[%emt 0:00:02]} 27. Qf4 {[%emt 0:02:06]} bxc5 {[%emt 0:02:17]} 28. dxc5 {[%emt 0:03:38]} Qe7 {[%emt 0:06:46]} 29. Qh4 {[%emt 0:02:32]} h5 {[%emt 0:02:12]} 30. b4 {[%emt 0:01:25]} Rf8 {[%emt 0:00:13]} 31. Rxf8+ {[%emt 0:04:59]} Qxf8 {[%emt 0:00:01]} 32. exd5 {[%emt 0:00:40]} cxd5 {[%emt 0:00:33]} 33. Qf4 {[%emt 0:00:44]} Qxf4 {[%emt 0:01:10]} 34. gxf4 {[%emt 0:00:03]} Kf8 {[%emt 0:00:32]} 35. Nf3 {[%emt 0:01:05]} Ke7 {[%emt 0:00:44]} 36. Nd4 {[%emt 0:01:28]} Ne8 {[%emt 0:01:45]} 37. b5 {[%emt 0:00:59]} Nf6 {[%emt 0:01:12]} 38. a4 {[%emt 0:01:15]} Ne4 {[%emt 0:00:47]} 39. c6 {[%emt 0:04:12]} Bc8 {[%emt 0:00:01]} 40. a5 {[%emt 0:00:21]} Nc5 {[%emt 0:02:40]} 41. b6 {[%emt 0:30:25]} axb6 {[%emt 0:30:09]} 42. axb6 {[%emt 0:00:05]} Kd6 {[%emt 0:00:00]} 43. b7 {[%emt 0:00:00]} Bxb7 {[%emt 0:00:00]} 44. cxb7 {[%emt 0:00:00]} Nxb7 {[%emt 0:00:00]} 45. Bxe6 {[%emt 0:00:00]} Kc5 {[%emt 0:00:00]} 46. Nf3 {[%emt 0:00:00]} Nd6 {[%emt 0:00:00]} 47. Kf2 {[%emt 0:00:00]} d4 {[%emt 0:00:00]} 48. Ke2 {[%emt 0:00:00]} Ne4 {[%emt 0:00:00]} 49. Ng5 {[%emt 0:00:00]} Nc3+ {[%emt 0:00:00]} 50. Kd3 {[%emt 0:00:00]} Kd6 {[%emt 0:00:00]} 51. Kxd4 {[%emt 0:00:00]} Nb5+ {[%emt 0:00:03]} 52. Ke3 {[%emt 0:00:00]} Ke7 {[%emt 0:00:13]} 53. Bf7 {[%emt 0:00:00]} h4 {[%emt 0:00:26]} 54. Bg6 {[%emt 0:00:00]} Nd6 {[%emt 0:01:09]} 55. Bd3 {[%emt 0:00:00]} Ne8 {[%emt 0:00:32]} 56. Nf3 {[%emt 0:00:00]} Kf6 {[%emt 0:02:52]} 57. Nxh4 {[%emt 0:00:00]} Nc7 {[%emt 0:00:23]} 58. Be4 {[%emt 0:00:00]} Ne6 {[%emt 0:00:09]} 59. Nf3 {[%emt 0:00:00]} Ng7 {[%emt 0:00:15]} 60. Ne5 {[%emt 0:00:00]} Ne6 {[%emt 0:00:41]} 61. Ng4+ {[%emt 0:00:00]} Kg7 {[%emt 0:00:25]} 62. h4 {[%emt 0:00:00]} Kh8 {[%emt 0:01:26]} 63. f5 {[%emt 0:00:00]} Nc5 {[%emt 0:01:09]} 64. Bd5 {[%emt 0:00:00]} Kg7 {[%emt 0:00:25]} 65. Kf4 {[%emt 0:00:00]} Nd7 {[%emt 0:00:40]} 66. Kg5 {[%emt 0:00:00]} Nf8 {[%emt 0:00:53]} 67. f6+ {[%emt 0:00:00]} Kh8 {[%emt 0:00:25]} 68. Ne5 {[%emt 0:00:00]} Kh7 {[%emt 0:00:09]} 69. Be4+ {[%emt 0:00:00]} Kg8 {[%emt 0:00:32]} 70. Bf5 {[%emt 0:00:00]} Kh8 {[%emt 0:01:42]} 71. Ng6+ {[%emt 0:00:00]} 1-0